bitfinex/quotes_ETHUSD_20250106
["timestamp","ask_amount","ask_price","bid_price","bid_amount"]
[1736155007422,2.73825,3652.0,3651.6,1.17981786]
[1736155007608,2.73825,3652.0,3651.7,0.94837463]
[1736155008108,2.73825,3652.0,3651.8,0.0381036]
[1736155008717,2.73825,3652.0,3651.9,35.03804136]
[1736155011712,2.73825,3652.0,3651.9,35.98680295]
[1736155011943,2.73825,3652.0,3651.9,35.03804136]
[1736155013896,2.73825,3652.0,3651.9,0.03804136]
[1736155014236,2.73825,3652.0,3651.6,1.14158625]
[1736155014410,2.73825,3652.0,3651.9,0.03801319]
[1736155014612,2.73825,3652.0,3651.7,35.0]
[1736155014811,2.73825,3652.0,3651.9,0.03801319]
[1736155015013,2.73825,3652.0,3651.9,0.94843438]
[1736155015341,2.73825,3652.0,3651.9,0.98644757]
[1736155018136,3.104385,3652.0,3651.9,0.98644757]
[1736155018328,3.881885,3652.0,3651.9,0.98644757]
[1736155019306,3.51575,3652.0,3651.9,0.03801319]
[1736155019667,3.51575,3652.0,3651.7,35.0]
[1736155019668,2.73837,3651.9,3651.7,35.0]
[1736155020615,2.73837,3651.8,3651.7,35.0]
[1736155021246,2.73837,3651.8,3651.7,35.0381764]
[1736155021633,2.73837,3651.8,3651.7,35.98753305]
[1736155022706,2.73837,3651.8,3651.7,35.0381764]
[1736155023530,2.73837,3651.8,3651.7,0.0381764]
[1736155023844,2.73837,3651.8,3651.4,1.14158625]
[1736155024008,2.73837,3651.8,3651.7,35.03825736]
[1736155025251,2.73837,3651.8,3651.7,35.98759443]
[1736155025608,2.73837,3651.8,3651.7,0.98759443]
[1736155026437,2.73837,3651.8,3651.7,0.03825736]
[1736155026823,1.92620624,3652.0,3651.5,35.0]
[1736155027023,2.73849,3651.7,3651.6,0.03841818]
[1736155027352,5.18149238,3651.7,3651.6,0.03841818]
[1736155027642,0.7765,3651.6,3651.3,1.14158625]
[1736155027953,2.73867,3651.4,3651.3,1.14158625]
[1736155029050,3.55137,3651.4,3651.3,1.14158625]
[1736155029250,3.55137,3651.4,3650.9,0.94936931]
[1736155029251,2.73897,3651.0,3650.9,0.94936931]
[1736155029410,5.09636976,3651.0,3650.9,0.94936931]
[1736155030847,5.09636976,3651.0,3650.4,35.0]
[1736155030848,2.73935,3650.5,3650.4,35.0]
[1736155031550,0.75,3650.6,3650.3,0.94936931]
[1736155031717,3.48928,3650.6,3650.3,0.94936931]
[1736155032117,3.48928,3650.6,3650.1,0.2488]
[1736155033352,2.73935,3650.5,3650.2,35.0]
[1736155036356,2.73935,3650.5,3650.3,0.03746022]
[1736155036720,2.73935,3650.5,3650.1,0.2488]
[1736155036916,2.73935,3650.5,3650.2,35.0]
[1736155037158,2.73935,3650.5,3650.2,35.03752251]
[1736155039773,0.75,3650.6,3650.2,35.03752251]
[1736155039922,2.73946,3650.4,3650.2,35.03752251]
[1736155040456,2.73946,3650.4,3650.2,0.03752251]
[1736155042558,0.75,3650.6,3650.2,0.03752251]
[1736155042863,2.7395,3650.3,3650.2,0.03752251]
[1736155043777,3.5055,3650.3,3650.2,0.03752251]
[1736155043973,3.5055,3650.3,3650.1,0.2488]
[1736155044193,4.69510276,3650.2,3650.1,0.2488]
[1736155045283,3.50557,3650.2,3650.1,0.2488]
[1736155045472,4.30418979,3650.2,3650.1,0.2488]
[1736155046186,2.73957,3650.2,3650.1,0.2488]
[1736155046356,0.12,3650.6,3650.1,0.2488]
[1736155046561,0.12,3650.6,3650.1,0.28442923]
[1736155047087,0.12,3650.6,3650.2,35.0]
[1736155047392,3.5055,3650.3,3650.2,35.0]
[1736155048263,4.26093628,3650.3,3650.2,35.0]
[1736155048460,2.7395,3650.3,3650.2,35.0]
[1736155049189,2.7395,3650.3,3650.1,0.2488]
[1736155049565,2.7395,3650.3,3650.2,35.0]
[1736155050766,2.7395,3650.3,3650.1,0.2488]
[1736155051174,2.73957,3650.2,3650.1,0.2488]
[1736155051485,3.287462,3650.2,3650.1,0.2488]
[1736155051687,4.063362,3650.2,3650.1,0.2488]
[1736155053827,4.093662,3650.2,3650.1,0.2488]
[1736155054670,0.7876,3649.7,3649.0,0.2496]
[1736155054870,2.7404,3649.1,3649.0,0.2496]
[1736155065134,0.12,3649.2,3649.0,0.2496]
[1736155065294,0.12,3649.4,3649.0,0.2496]
[1736155065497,0.8024,3649.7,3649.1,0.03462024]
[1736155065700,0.12,3649.9,3649.1,0.03462024]
[1736155066022,2.85986,3649.9,3649.1,0.03462024]
[1736155067723,2.85986,3649.9,3648.8,5.74055]
[1736155067933,2.85986,3649.9,3649.2,0.03452272]
[1736155068250,2.74011,3649.5,3649.3,0.03446039]
[1736155068446,2.74011,3649.5,3648.5,3.0]
[1736155068723,2.74011,3649.5,3649.4,0.03439807]
[1736155068925,2.74011,3649.5,3648.5,5.74085]
[1736155069125,1.10373312,3649.8,3648.5,5.74085]
[1736155069432,2.74019,3649.4,3648.6,0.03489677]
[1736155069932,2.74028,3649.3,3648.6,0.03489677]
[1736155070705,2.74034,3649.2,3648.6,0.03489677]
[1736155071016,2.74034,3649.2,3648.2,3.0]
[1736155071193,2.74034,3649.2,3648.7,0.03483442]
[1736155071393,3.014374,3649.2,3648.2,3.0]
[1736155071605,3.014374,3649.2,3648.8,0.03477208]
[1736155071824,0.274034,3649.2,3648.2,3.0]
[1736155072041,2.74048,3649.0,3648.9,0.03470973]
[1736155072327,2.74058,3648.9,3648.0,3.0]
[1736155072733,2.74058,3648.9,3648.1,0.03522265]
[1736155073828,2.74058,3648.9,3648.1,3.03522265]
[1736155074730,0.756,3649.1,3648.1,0.03522265]
[1736155074931,2.74063,3648.8,3648.1,0.03522265]
[1736155075130,2.74063,3648.8,3647.9,3.0]
[1736155075332,2.74063,3648.8,3648.2,0.03516028]
[1736155075510,2.74063,3648.8,3647.9,4.31282313]
[1736155075710,2.74063,3648.8,3648.3,0.03509792]
[1736155075910,2.74063,3648.8,3647.9,4.31282313]
[1736155076143,2.74063,3648.8,3648.4,0.03503556]
[1736155076328,2.74063,3648.8,3648.0,1.42067135]
[1736155077126,2.74049,3649.0,3648.6,0.03491085]
[1736155077438,2.74049,3649.0,3648.7,0.0348485]
[1736155077618,2.74049,3649.0,3648.0,1.42067135]
[1736155077822,2.74049,3649.0,3648.8,0.03483192]
[1736155078068,0.349649,3648.9,3648.8,0.03483192]
[1736155078264,0.349649,3648.9,3648.1,3.0]
[1736155078451,2.74049,3649.0,3648.8,0.03483192]
[1736155078763,2.74049,3649.0,3648.1,3.0]
[1736155079061,2.74049,3649.0,3648.2,0.03520605]
[1736155080888,0.756,3649.1,3648.2,0.03520605]
[1736155081391,2.74063,3648.8,3648.3,0.03514368]
[1736155081690,2.74063,3648.8,3647.9,5.74125]
[1736155081858,2.74063,3648.8,3648.4,0.03508132]
[1736155082070,2.74063,3648.8,3647.9,7.05420818]
[1736155082481,2.74063,3648.8,3648.0,0.03533079]
[1736155082679,2.74063,3648.8,3648.0,1.4561777]
[1736155083658,2.74075,3648.7,3648.0,1.4561777]
[1736155083993,2.74075,3648.7,3648.1,0.94722867]
[1736155084166,2.74075,3648.7,3648.1,0.98130603]
[1736155084363,0.12,3648.6,3648.1,0.98130603]
[1736155084616,2.86078,3648.6,3648.1,0.98130603]
[1736155085295,2.86078,3648.6,3648.1,0.03407736]
[1736155085599,2.86078,3648.6,3647.9,4.42084691]
[1736155085755,2.86078,3648.6,3648.2,0.03415576]
[1736155085956,2.86078,3648.6,3647.9,4.42084691]
[1736155086164,2.86078,3648.6,3648.0,0.0342805]
[1736155086379,0.12,3648.6,3648.0,0.0342805]
[1736155086564,0.12,3648.6,3648.0,0.98214331]
[1736155086779,0.12,3648.6,3648.0,2.17473902]
[1736155088197,0.12,3648.6,3648.0,2.64772312]
[1736155089601,0.12,3648.6,3648.1,0.9482623]
[1736155089800,0.12,3648.6,3648.1,0.98248043]
[1736155091305,0.12,3648.6,3648.1,0.03421813]
[1736155092305,0.756,3649.1,3648.1,3.88794733]
[1736155092472,0.12,3648.8,3648.1,6.62903733]
[1736155092668,0.12,3649.0,3648.1,6.62903733]
[1736155093269,0.12,3649.0,3648.2,0.02740727]
[1736155093505,0.12,3649.0,3648.2,2.4032212]
[1736155093691,3.29880443,3649.3,3648.4,5.37755043]
[1736155093899,0.67850443,3649.3,3648.4,5.37755043]
[1736155094109,0.67850443,3649.3,3648.5,0.03406018]
[1736155094876,3.41877443,3649.3,3648.5,0.03406018]
[1736155095302,2.74034,3649.2,3648.5,0.03406018]
[1736155096307,0.7538,3648.9,3648.3,1.14497647]
[1736155096530,2.74064,3648.8,3648.6,0.03393448]
[1736155096732,2.74078,3648.6,3648.3,1.14497647]
[1736155097383,2.74078,3648.6,3648.2,2.09430333]
[1736155098087,2.74064,3648.8,3648.2,2.09430333]
[1736155098292,2.74076,3648.7,3648.2,2.09430333]
[1736155098693,2.74083,3648.6,3648.2,2.09430333]
[1736155098890,2.74083,3648.6,3648.3,0.94932686]
[1736155099814,2.86083,3648.6,3648.3,0.94932686]
[1736155101091,2.86083,3648.6,3648.4,2.37200014]
[1736155102484,2.86083,3648.6,3648.5,0.94932686]
[1736155104297,0.12,3648.6,3648.5,0.94932686]
[1736155105385,0.12,3648.6,3648.5,35.94932686]
[1736155106121,2.86077,3648.6,3648.5,35.94932686]
[1736155106725,3.496284,3648.6,3648.5,35.94932686]
[1736155107230,3.496284,3648.6,3648.5,0.94932686]
[1736155107930,3.496284,3648.6,3648.4,35.0]
[1736155108223,2.86077,3648.6,3648.4,35.0]
[1736155108526,2.74103,3648.3,3648.0,1.14497647]
[1736155109118,2.74103,3648.3,3648.1,35.0]
[1736155110832,2.74103,3648.3,3648.2,2.37697267]
[1736155111134,2.74103,3648.3,3648.2,2.41139595]
[1736155112534,2.74103,3648.3,3648.2,37.41139595]
[1736155114002,3.377054,3648.3,3648.2,2.41139595]
[1736155115125,3.377054,3648.3,3648.2,0.03442328]
[1736155115630,3.54986,3648.1,3647.8,35.0]
[1736155116001,0.8087,3648.1,3647.8,35.0]
[1736155116220,2.7413,3647.9,3647.8,35.0]
[1736155116826,0.8087,3648.1,3647.8,35.0]
[1736155117025,2.86107,3648.2,3647.8,35.0]
[1736155117205,1.14870624,3648.5,3647.8,37.71757592]
[1736155117411,1.01910624,3648.5,3647.8,37.71757592]
[1736155117925,0.89910624,3648.5,3647.8,40.35424635]
[1736155118243,0.89910624,3648.5,3648.1,2.63667043]
[1736155118854,0.89910624,3648.5,3648.2,35.0]
[1736155119032,0.89910624,3648.5,3648.3,2.71757592]
[1736155119237,0.12,3648.8,3648.3,2.71757592]
[1736155119408,0.12,3648.8,3648.2,0.95046598]
[1736155119607,0.12,3648.8,3648.4,35.0]
[1736155119829,2.74049,3649.0,3648.4,35.0]
[1736155120034,2.86041,3649.1,3648.4,35.0]
[1736155120231,2.86041,3649.1,3648.5,2.71757592]
[1736155121855,2.86041,3649.1,3648.6,0.95041305]
[1736155122627,0.12,3649.1,3648.6,0.95041305]
[1736155123869,0.12,3649.1,3648.7,35.01526205]
[1736155124012,0.12,3649.1,3648.7,35.0]
[1736155124214,0.12,3649.1,3648.8,2.71757592]
[1736155124718,0.12,3649.1,3648.6,0.95041305]
[1736155125034,0.53797511,3649.4,3648.9,35.0]
[1736155126019,0.53797511,3649.4,3649.0,0.03129672]
[1736155127426,3.27816511,3649.4,3649.0,0.03129672]
[1736155127627,0.53797511,3649.4,3649.0,0.03129672]
[1736155127830,2.74031,3649.3,3649.0,0.03129672]
[1736155128950,3.53831,3649.3,3649.0,0.03129672]
[1736155130419,2.74031,3649.3,3649.0,0.03129672]
[1736155132216,2.7402,3649.4,3649.0,0.03129672]
[1736155132417,2.74026,3649.3,3649.0,0.03129672]
[1736155133859,2.74035,3649.2,3649.0,0.03129672]
[1736155134045,2.7402,3649.4,3648.6,1.14497647]
[1736155134230,2.7402,3649.4,3648.7,35.03146264]
[1736155134580,1.91029274,3649.7,3648.7,35.03146264]
[1736155134725,2.74027,3649.3,3648.7,35.03146264]
[1736155135074,2.74027,3649.3,3648.8,2.71757592]
[1736155135276,2.74027,3649.3,3648.9,0.03133795]
[1736155138320,2.74027,3649.3,3649.0,35.0]
[1736155138525,2.74027,3649.3,3649.1,0.0310584]
[1736155139126,2.74027,3649.3,3648.5,2.56879928]
[1736155139451,2.74027,3649.3,3648.6,35.96587991]
[1736155139650,2.74027,3649.3,3648.7,0.03130777]
[1736155140133,0.12,3649.5,3648.7,0.03130777]
[1736155140326,0.12,3649.5,3648.8,35.0]
[1736155140661,0.12,3649.5,3648.8,35.03124542]
[1736155140961,2.74027,3649.3,3648.8,37.65204638]
[1736155145448,2.74033,3649.2,3648.8,37.65204638]
[1736155145662,0.12,3649.5,3648.8,35.03124542]
[1736155147369,2.74029,3649.3,3648.8,35.03124542]
[1736155152002,2.74039,3649.2,3648.8,35.03124542]
[1736155153582,2.7402,3649.4,3648.8,35.03124542]
[1736155154107,0.12,3649.5,3648.8,35.03124542]
[1736155154108,2.74029,3649.3,3648.8,35.03124542]
[1736155159283,0.7611,3649.7,3649.1,1.19052528]
[1736155159523,0.12,3649.6,3649.1,1.19052528]
[1736155159800,2.86004,3649.6,3649.2,0.03058298]
[1736155159999,2.86004,3649.6,3649.2,35.03058298]
[1736155160210,2.86004,3649.6,3649.2,35.0]
[1736155160370,2.7401,3649.5,3649.3,0.03045732]
[1736155160898,2.7401,3649.5,3649.4,0.03039499]
[1736155161208,2.7401,3649.5,3649.4,35.0]
[1736155161409,2.7401,3649.5,3649.4,35.03039499]
[1736155161563,2.73998,3649.7,3649.4,35.03039499]
[1736155161768,2.74005,3649.6,3649.4,0.03039499]
[1736155161965,1.14919274,3650.0,3649.5,1.19052528]
[1736155162178,1.14919274,3650.0,3649.9,1.19052528]
[1736155162589,1.14919274,3650.0,3649.9,1.22054888]
[1736155162876,1.14919274,3650.0,3649.9,36.22038004]
[1736155163077,1.14919274,3650.4,3649.9,36.22038004]
[1736155164823,2.73605112,3650.6,3649.9,36.22038004]
[1736155165120,2.73605112,3650.6,3649.9,35.02985476]
[1736155165318,0.12,3650.7,3649.9,35.02985476]
[1736155165521,2.73935,3650.5,3649.9,35.02985476]
[1736155170230,0.12,3650.7,3649.9,35.02985476]
[1736155171139,2.73934,3650.6,3649.9,35.02985476]
[1736155173439,0.12,3650.7,3649.9,35.02985476]
[1736155173440,2.73937,3650.5,3649.9,35.02985476]
[1736155173652,2.73942,3650.4,3649.9,35.02985476]
[1736155174605,3.025362,3650.4,3649.9,35.02985476]
[1736155175219,2.73959,3650.2,3649.9,35.02985476]
[1736155175419,2.73972,3650.0,3649.9,35.02985476]
[1736155178450,0.806,3650.3,3649.9,35.02985476]
[1736155178655,2.73959,3650.2,3649.9,35.02985476]
[1736155181262,3.1227432,3650.2,3649.9,35.02985476]
[1736155184164,0.3831532,3650.2,3649.9,35.02985476]
[1736155185022,2.8595,3650.3,3649.9,35.02985476]
[1736155185465,0.7931,3650.2,3649.9,35.02985476]
[1736155185666,0.7931,3650.2,3649.9,0.02985476]
[1736155186018,0.7931,3650.2,3649.4,3.0]
[1736155186219,0.7931,3650.2,3649.5,35.0]
[1736155186426,1.15836,3650.2,3649.5,35.0]
[1736155186664,1.15836,3650.2,3649.6,0.02972863]
[1736155187364,1.15836,3650.2,3649.7,35.02967686]
[1736155188469,0.7931,3650.2,3649.7,35.02967686]
[1736155188669,0.12,3650.3,3649.7,35.02967686]
[1736155192979,1.31015822,3650.3,3649.7,35.02967686]
[1736155193806,0.12,3650.3,3649.7,35.02967686]
[1736155194704,1.19015822,3650.2,3649.7,35.02967686]
[1736155195365,3.92957822,3650.4,3649.7,35.02967686]
[1736155195566,4.04957822,3650.4,3649.7,35.02967686]
[1736155196399,1.31015822,3650.4,3649.7,35.02967686]
[1736155196604,1.31015822,3650.4,3649.7,40.48719278]
[1736155196789,1.31015822,3650.4,3649.7,5.48719278]
[1736155196995,1.19015822,3650.4,3649.7,2.76961686]
[1736155197196,2.73916,3650.8,3649.8,2.73981]
[1736155197197,0.12,3650.6,3649.8,2.73981]
[1736155197400,0.12,3650.6,3649.8,2.76720584]
[1736155197566,0.12,3650.6,3649.9,0.02947837]
[1736155197915,0.12,3650.6,3650.0,35.0]
[1736155198117,0.12,3650.6,3650.0,35.02941606]
[1736155199468,1.31015822,3650.6,3650.0,35.02941606]
[1736155201071,4.04942822,3650.6,3650.0,35.02941606]
[1736155201588,4.70445621,3650.6,3650.0,35.02941606]
[1736155205205,4.70445621,3650.6,3650.0,0.02941606]
[1736155205503,4.70445621,3650.6,3649.8,1.14497647]
[1736155205807,4.70445621,3650.6,3650.1,0.0292518]
[1736155205969,4.70445621,3650.6,3649.9,35.0]
[1736155206177,4.04942822,3650.6,3650.2,0.0291895]
[1736155206399,4.04942822,3650.6,3649.9,35.0]
[1736155206700,4.04942822,3650.6,3650.3,0.0291272]
[1736155206903,4.04942822,3650.6,3649.9,35.0]
[1736155207068,4.04942822,3650.6,3650.0,0.0293141]
[1736155207372,4.04942822,3650.6,3650.0,1.42400883]
[1736155207573,2.73935,3650.5,3650.1,0.0292518]
[1736155208811,2.73935,3650.5,3650.2,0.94976509]
[1736155209179,2.45935096,3650.6,3650.3,0.0291272]
[1736155209776,1.26919274,3650.6,3650.3,0.0291272]
[1736155209976,1.26919274,3650.6,3650.0,1.14497647]
[1736155210330,1.26919274,3650.6,3650.4,0.02906491]
[1736155210629,2.73936,3650.5,3650.1,0.0292518]
[1736155210836,3.55686,3650.5,3650.0,1.14497647]
[1736155211136,3.55686,3650.5,3650.1,2.37383971]
[1736155212112,3.55686,3650.5,3650.1,1.42430383]
[1736155213615,4.70605274,3650.5,3650.0,1.42430383]
[1736155214513,4.70605274,3650.5,3650.1,0.94952172]
[1736155215514,5.56271856,3650.5,3650.1,0.94952172]
[1736155215704,5.56271856,3650.5,3649.9,1.14497647]
[1736155216313,5.56271856,3650.5,3650.0,0.02929652]
[1736155216927,5.56271856,3650.5,3650.0,2.40313717]
[1736155218123,5.56271856,3650.5,3650.1,0.94953626]
[1736155218317,3.6817724,3650.4,3650.1,0.94953626]
[1736155218618,3.6817724,3650.4,3650.1,0.97877751]
[1736155219288,3.6817724,3650.4,3650.1,0.02924125]
[1736155219489,3.6817724,3650.4,3649.9,1.14497647]
[1736155219687,2.73944,3650.4,3650.0,0.02930355]
[1736155220731,1.96669274,3650.5,3650.0,2.40315477]
[1736155220893,0.818,3650.1,3650.0,2.40315477]
[1736155221230,3.55765,3650.1,3650.0,2.40315477]
[1736155221831,3.55765,3650.1,3650.0,0.97884404]
[1736155222035,4.1473501,3650.1,3650.0,0.97884404]
[1736155223029,4.1473501,3650.1,3650.0,0.02930355]
[1736155223529,4.1473501,3650.1,3649.8,1.42499045]
[1736155223728,4.1473501,3650.1,3650.0,0.02934223]
[1736155223908,5.33750832,3650.1,3649.8,1.42499045]
[1736155224109,5.33750832,3650.1,3649.9,1.42499045]
[1736155224321,5.33750832,3650.1,3649.9,1.45439499]
[1736155225434,5.33750832,3650.1,3650.0,35.0]
[1736155225729,4.74780822,3650.1,3650.0,35.0]
[1736155225934,4.74780822,3650.1,3650.0,35.02934223]
[1736155228549,0.818,3650.1,3650.0,35.02934223]
[1736155229034,0.818,3650.1,3650.0,0.02934223]
[1736155229545,0.818,3650.1,3650.0,35.0]
[1736155229731,1.14919274,3650.3,3650.0,35.0]
[1736155229936,1.14919274,3650.3,3650.0,35.02934223]
[1736155230911,3.56884,3650.4,3650.0,35.02934223]
[1736155231164,2.7395,3650.3,3650.0,35.02934223]
[1736155231374,4.53238332,3650.3,3650.0,35.02934223]
[1736155231970,3.92980822,3650.1,3650.0,0.02934223]
[1736155232174,4.70240822,3650.1,3649.8,1.14497647]
[1736155232384,3.92995822,3649.9,3649.8,1.14497647]
[1736155233579,4.70325822,3649.9,3649.8,1.14497647]
[1736155233755,5.44754904,3649.9,3649.8,1.14497647]
[1736155234379,2.73995,3649.7,3649.5,0.94983698]
[1736155234840,3.93010822,3649.7,3649.5,0.94983698]
[1736155235880,3.93010822,3649.7,3649.4,35.0]
[1736155237397,2.73995,3649.7,3649.4,35.0]
[1736155237669,1.96345822,3649.9,3649.4,35.0]
[1736155237873,2.73991,3649.8,3649.4,35.0]
[1736155240683,2.73996,3649.7,3649.4,35.0]
[1736155242433,4.75011822,3649.9,3649.4,35.0]
[1736155244496,2.73987,3649.8,3649.4,35.0]
[1736155246250,2.73987,3649.8,3649.5,0.03004067]
[1736155249375,2.73987,3649.8,3649.0,1.14497647]
[1736155249562,2.73987,3649.8,3649.6,0.02997835]
[1736155249761,2.73987,3649.8,3649.7,35.0]
[1736155249983,2.73987,3649.8,3649.7,35.02991603]
[1736155253037,2.73987,3649.8,3649.7,0.02991603]
[1736155253205,2.73987,3649.8,3649.0,1.14497647]
[1736155253407,2.73987,3649.8,3649.7,0.02991603]
[1736155253622,2.73987,3649.8,3649.1,35.0]
[1736155253837,2.73987,3649.8,3649.7,0.02991603]
[1736155254047,2.73987,3649.8,3649.1,35.94815132]
[1736155254211,2.73987,3649.8,3649.7,0.02991603]
[1736155254410,2.73987,3649.8,3649.1,35.94815132]
[1736155254611,2.73987,3649.8,3649.7,0.02991603]
[1736155254913,2.73987,3649.8,3649.2,1.42222698]
[1736155255115,2.73987,3649.8,3649.7,0.02991603]
[1736155255329,2.73987,3649.8,3649.2,1.42222698]
[1736155255806,2.73987,3649.8,3649.3,0.03016532]
[1736155256008,2.73987,3649.8,3649.2,1.42222698]
[1736155256239,2.73987,3649.8,3649.4,0.03010299]
[1736155256419,2.73987,3649.8,3649.2,1.42222698]
[1736155259650,2.73987,3649.8,3649.3,0.03016532]
[1736155259942,2.73987,3649.8,3649.2,1.42222698]
[1736155260248,2.73987,3649.8,3649.3,0.03019345]
[1736155260451,2.73987,3649.8,3649.2,1.42222698]
[1736155260636,2.73987,3649.8,3649.4,0.03013113]
[1736155260832,2.73987,3649.8,3649.2,1.42222698]
[1736155261039,2.73987,3649.8,3649.5,0.0300688]
[1736155261254,2.73987,3649.8,3649.2,1.42222698]
[1736155261423,2.73987,3649.8,3649.6,0.03000648]
[1736155261754,2.73987,3649.8,3649.2,1.42222698]
[1736155261945,2.73987,3649.8,3649.7,0.02994417]
[1736155262145,2.73987,3649.8,3649.2,1.42222698]
[1736155262357,2.12925822,3649.9,3649.2,1.42222698]
[1736155262358,0.119,3649.9,3649.7,0.02994417]
[1736155262656,1.14919274,3650.2,3649.8,0.02988186]
[1736155262657,0.119,3650.0,3649.8,0.02988186]
[1736155262971,0.119,3650.0,3649.2,6.8801129]
[1736155263274,0.119,3650.0,3649.3,0.94886481]
[1736155263419,0.119,3650.0,3649.3,0.97905826]
[1736155264057,1.30915822,3650.0,3649.3,0.97905826]
[1736155264384,4.04888822,3650.0,3649.3,0.97905826]
[1736155264542,4.04888822,3650.0,3649.4,3.51606826]
[1736155264880,4.04888822,3650.0,3649.5,0.0300688]
[1736155265579,4.04888822,3650.0,3649.5,0.97893361]
[1736155266569,4.04888822,3650.0,3649.6,35.0]
[1736155266875,2.7398,3649.9,3649.7,0.02994417]
[1736155267389,2.74002,3649.6,3649.4,1.42222698]
[1736155267604,1.19015822,3649.6,3649.4,1.42222698]
[1736155267724,2.7401,3649.5,3649.4,1.42222698]
[1736155268423,2.7401,3649.5,3649.3,36.14497647]
[1736155268424,2.7401,3649.5,3649.3,35.0]
[1736155268845,4.72182822,3649.4,3649.3,35.0]
[1736155269055,2.74025,3649.3,3649.2,1.14497647]
[1736155269256,2.74025,3649.3,3649.0,1.14497647]
[1736155269476,2.74025,3649.3,3649.1,35.0]
[1736155270792,2.74025,3649.3,3649.2,0.94941812]
[1736155271145,1.98165822,3649.4,3649.2,0.94941812]
[1736155271484,3.53169,3649.4,3649.2,0.94941812]
[1736155272199,3.53169,3649.4,3649.3,35.0]
[1736155272919,2.74019,3649.4,3649.3,35.0]
[1736155273077,0.7973,3649.7,3649.3,35.0]
[1736155274221,3.53726,3649.7,3649.3,35.0]
[1736155275401,2.73996,3649.7,3649.3,35.0]
[1736155276195,2.73996,3649.7,3649.4,0.03011196]
[1736155276606,1.19015822,3649.6,3649.4,0.03011196]
[1736155278138,4.68597822,3649.6,3649.4,0.03011196]
[1736155278440,4.68597822,3649.6,3649.1,1.14497647]
[1736155278640,4.68597822,3649.6,3649.5,0.03004964]
[1736155278800,4.68597822,3649.6,3649.2,35.0]
[1736155279132,4.68597822,3649.6,3649.5,0.03004964]
[1736155279339,4.68597822,3649.6,3649.2,35.0]
[1736155279637,4.68597822,3649.6,3649.3,1.42462163]
[1736155279939,4.68597822,3649.6,3649.3,1.45479592]
[1736155280844,4.68597822,3649.6,3649.3,0.03017429]
[1736155281024,2.70178661,3649.6,3649.2,35.0]
[1736155281199,2.74018,3649.4,3649.0,1.14497647]
[1736155281708,2.74018,3649.4,3649.1,35.0]
[1736155281912,2.74018,3649.4,3649.1,37.37477785]
[1736155283147,2.74018,3649.4,3649.2,2.37477785]
[1736155283802,2.74018,3649.4,3649.3,35.0]
[1736155285735,2.74025,3649.3,3649.0,1.14497647]
[1736155285937,3.5152,3649.1,3649.0,1.14497647]
[1736155286111,3.5152,3649.1,3649.0,36.14497647]
[1736155286760,3.5152,3649.1,3649.0,35.0]
[1736155289470,2.74053,3649.0,3648.5,1.14497647]
[1736155289638,3.93068822,3649.0,3648.5,1.14497647]
[1736155289968,3.93068822,3649.0,3648.6,35.0]
[1736155290132,2.74063,3648.8,3648.6,35.0]
[1736155290337,3.93078822,3648.8,3648.6,35.0]
[1736155290564,2.7407,3648.7,3648.6,35.0]
[1736155290768,3.5131,3648.7,3648.6,35.0]
[1736155290976,3.51325,3648.5,3648.4,1.14497647]
[1736155291126,1.96255822,3648.5,3648.3,1.14497647]
[1736155291334,4.67548904,3648.4,3648.3,1.14497647]
[1736155291779,5.43328904,3648.4,3648.3,1.14497647]
[1736155292958,2.74118,3648.1,3647.3,3.51897497]
[1736155293242,0.119,3648.0,3647.4,0.91634026]
[1736155294454,0.119,3648.0,3647.4,0.94375395]
[1736155294650,0.119,3648.0,3647.4,2.13391217]
[1736155295378,0.119,3648.0,3647.5,35.0]
[1736155295744,0.119,3648.0,3647.5,37.67034061]
[1736155296378,0.119,3648.0,3647.5,2.67034061]
[1736155296562,0.119,3648.0,3647.4,1.21152323]
[1736155296874,0.119,3648.0,3647.4,36.21152323]
[1736155297080,0.119,3648.0,3647.4,36.19015822]
[1736155297484,0.7578,3648.4,3647.4,36.19015822]
[1736155297657,0.119,3648.3,3647.4,36.19015822]
[1736155297978,0.119,3648.3,3647.5,2.71757592]
[1736155299082,2.86001,3648.3,3647.5,2.71757592]
[1736155299576,2.86001,3648.3,3647.4,35.0]
[1736155299740,2.74107,3648.2,3647.4,35.0]
[1736155299936,2.74124,3648.0,3647.4,35.0]
[1736155300171,2.74124,3648.0,3647.2,2.33513469]
[1736155300172,0.7622,3647.9,3647.2,1.14497647]
[1736155300579,0.7622,3647.9,3647.1,3.0]
[1736155300783,0.7622,3647.9,3647.1,5.71757592]
[1736155301081,3.5035,3647.9,3647.1,5.71757592]
[1736155301637,0.7622,3647.9,3647.1,5.71757592]
[1736155302043,1.19015822,3648.2,3647.2,1.19015822]
[1736155302282,3.55205,3648.1,3647.2,3.93195822]
[1736155302458,3.55205,3648.1,3647.3,0.86910495]
[1736155303583,3.55205,3648.1,3647.4,0.01402057]
[1736155304187,3.55205,3648.1,3647.3,0.86910495]
[1736155306083,3.55205,3648.1,3647.4,0.03018804]
[1736155306903,2.74123,3648.0,3647.4,0.03018804]
[1736155307394,2.74123,3648.0,3647.5,0.03012565]
[1736155307606,2.74123,3648.0,3647.1,3.0]
[1736155307800,2.74123,3648.0,3647.6,0.03006326]
[1736155307999,2.74123,3648.0,3647.1,3.85770847]
[1736155308202,2.74123,3648.0,3647.7,0.03000088]
[1736155308376,2.74123,3648.0,3647.1,3.85770847]
[1736155308576,2.74123,3648.0,3647.2,0.03031283]
[1736155308796,2.74123,3648.0,3647.3,0.83201295]
[1736155308997,2.74123,3648.0,3647.4,0.03018804]
[1736155309200,2.74131,3647.9,3647.4,0.03018804]
[1736155309407,2.74131,3647.9,3647.1,3.0]
[1736155309589,2.74131,3647.9,3647.5,0.03012565]
[1736155309911,2.74131,3647.9,3647.1,3.85771747]
[1736155310137,2.74131,3647.9,3647.6,0.03006326]
[1736155310265,2.74131,3647.9,3647.1,3.85771747]
[1736155310991,2.74131,3647.9,3647.2,0.03031283]
[1736155311301,0.8109,3648.1,3647.2,0.03031283]